lending/lending_fUSD_20240507
["ID","MTS","AMOUNT","RATE_DAILY","PERIOD"]
[326559821,1715109051662,-500.0,0.00019452,2]
[326559822,1715109051679,-500.0,0.00019452,2]
[326559823,1715109051693,-500.0,0.00019452,2]
[326559824,1715109051705,-500.0,0.00019452,2]
[326559825,1715109051716,-500.0,0.00019452,2]
[326559826,1715109051727,-500.0,0.00019452,2]
[326559827,1715109051749,-500.0,0.00019452,2]
[326559828,1715109051765,-500.0,0.00019452,2]
[326559829,1715109051790,-500.0,0.00019452,2]
[326559830,1715109051804,-500.0,0.00019452,2]
[326559831,1715109051815,-511.83,0.00019452,2]
[326559832,1715109051828,-640.82,0.00019452,2]
[326559833,1715109051842,-1296.96,0.00019452,2]
[326559834,1715109051856,-1039.89,0.00019452,2]
[326559835,1715109051866,-500.0,0.00019452,2]
[326559836,1715109051879,-1344.86,0.00019452,2]
[326559837,1715109051895,-510.16,0.00019452,2]
[326559838,1715109051913,-500.0,0.00019452,2]
[326559839,1715109051928,-500.0,0.00019452,2]
[326559840,1715109051939,-500.0,0.00019452,2]
[326559841,1715109051952,-500.0,0.00019452,2]
[326559842,1715109051968,-1140.53,0.00019452,2]
[326559843,1715109051985,-500.0,0.00019452,2]
[326559844,1715109051997,-500.0,0.00019452,2]
[326559845,1715109052008,-548.18,0.00019452,2]
[326559846,1715109052017,-500.0,0.00019452,2]
[326559847,1715109052028,-909.34,0.00019452,2]
[326559848,1715109052045,-500.0,0.00019452,2]
[326559849,1715109052056,-500.0,0.00019452,2]
[326559850,1715109052068,-500.0,0.00019452,2]
[326559851,1715109052079,-507.3440341,0.00019452,2]
[326559852,1715109052092,-500.0,0.00019452,2]
[326559853,1715109052102,-500.0,0.00019452,2]
[326559854,1715109052113,-500.0,0.00019452,2]
[326559855,1715109052124,-587.62,0.00019452,2]
[326559856,1715109052135,-500.0,0.00019452,2]
[326559857,1715109052146,-737.75,0.00019452,2]
[326559858,1715109052157,-500.0,0.00019452,2]
[326559859,1715109052167,-500.0,0.00019452,2]
[326559860,1715109052177,-500.0,0.00019452,2]
[326559861,1715109052187,-965.36,0.00019452,2]
[326559862,1715109052198,-500.0,0.00019452,2]
[326559863,1715109052208,-500.0,0.00019452,2]
[326559864,1715109052223,-500.0,0.00019452,2]
[326559865,1715109052233,-500.0,0.00019452,2]
[326559866,1715109052245,-500.0,0.00019452,2]
[326559867,1715109052254,-1277.92,0.00019452,2]
[326559868,1715109052265,-772.42,0.00019452,2]
[326559869,1715109052276,-500.0,0.00019452,2]
[326559870,1715109052288,-634.37,0.00019452,2]
[326559871,1715109052300,-500.0,0.00019452,2]
[326559872,1715109052315,-559.02,0.00019452,2]
[326559873,1715109052325,-854.42,0.00019452,2]
[326559874,1715109052335,-500.0,0.00019452,2]
[326559875,1715109052346,-518.82,0.00019452,2]
[326559876,1715109052360,-500.0,0.00019452,2]
[326559877,1715109052370,-834.2,0.00019452,2]
[326559878,1715109052380,-500.0,0.00019452,2]
[326559879,1715109052395,-500.0,0.00019452,2]
[326559880,1715109052406,-500.0,0.00019452,2]
[326559881,1715109052418,-500.0,0.00019452,2]
[326559882,1715109052429,-1295.25,0.00019452,2]
[326559883,1715109052445,-500.0,0.00019452,2]
[326559884,1715109052455,-1379.17,0.00019452,2]
[326559885,1715109052466,-500.0,0.00019452,2]
[326559886,1715109052479,-500.0,0.00019452,2]
[326559887,1715109052493,-756.88,0.00019452,2]
[326559888,1715109052505,-500.0,0.00019452,2]
[326559889,1715109052516,-1051.91,0.00019452,2]
[326559890,1715109052529,-605.72,0.00019452,2]
[326559891,1715109052540,-506.05117613,0.00019452,2]
[326559892,1715109052551,-500.0,0.00019452,2]
[326559893,1715109052561,-500.0,0.00019452,2]
[326559894,1715109052571,-500.0,0.00019452,2]
[326559895,1715109052582,-1384.39,0.00019452,2]
[326559896,1715109052595,-500.0,0.00019452,2]
[326559897,1715109052610,-830.22,0.00019452,2]
[326559898,1715109052620,-500.0,0.00019452,2]
[326559899,1715109052630,-504.54,0.00019452,2]
[326559900,1715109052642,-675.32,0.00019452,2]
[326559901,1715109052652,-500.0,0.00019452,2]
[326559902,1715109052663,-849.26,0.00019452,2]
[326559903,1715109052673,-500.0,0.00019452,2]
[326559904,1715109052684,-964.69,0.00019452,2]
[326559905,1715109052695,-500.0,0.00019452,2]
[326559906,1715109052705,-775.4,0.00019452,2]
[326559907,1715109052716,-500.0,0.00019452,2]
[326559908,1715109052726,-642.62,0.00019452,2]
[326559909,1715109052738,-553.11124013,0.00019452,2]
[326559910,1715109052750,-500.0,0.00019452,2]
[326559911,1715109052763,-1511.31,0.00019452,2]
[326559912,1715109052779,-1094.98,0.00019452,2]
[326559913,1715109052798,-500.0,0.00019452,2]
[326559914,1715109052809,-777.92,0.00019452,2]
[326559915,1715109052819,-751.54,0.00019452,2]
[326559916,1715109052832,-500.0,0.00019452,2]
[326559917,1715109052846,-500.0,0.00019452,2]
[326559918,1715109052861,-529.2,0.00019452,2]
[326559919,1715109052871,-824.9,0.00019452,2]
[326559920,1715109052882,-500.0,0.00019452,2]
[326559921,1715109052896,-500.0,0.00019452,2]
[326559922,1715109052907,-500.0,0.00019452,2]
[326559923,1715109052917,-740.96,0.00019452,2]
[326559924,1715109052928,-500.0,0.00019452,2]
[326559925,1715109052940,-500.0,0.00019452,2]
[326559926,1715109052951,-1194.81,0.00019452,2]
[326559927,1715109052961,-648.24,0.00019452,2]
[326559928,1715109052974,-500.0,0.00019452,2]
[326559929,1715109052986,-853.96,0.00019452,2]
[326559930,1715109052998,-500.0,0.00019452,2]
[326559931,1715109053007,-500.0,0.00019452,2]
[326559932,1715109053017,-500.0,0.00019452,2]
[326559933,1715109053028,-665.48,0.00019452,2]
[326559934,1715109053038,-712.08,0.00019452,2]
[326559935,1715109053049,-500.0,0.00019452,2]
[326559936,1715109053059,-1308.28,0.00019452,2]
[326559937,1715109053069,-500.0,0.00019452,2]
[326559938,1715109053080,-500.0,0.00019452,2]
[326559939,1715109053089,-531.86,0.00019452,2]
[326559940,1715109053099,-661.12,0.00019452,2]
[326559941,1715109053110,-500.0,0.00019452,2]
[326559942,1715109053120,-500.0,0.00019452,2]
[326559943,1715109053131,-500.0,0.00019452,2]
[326559944,1715109053141,-500.0,0.00019452,2]
[326559945,1715109053150,-1409.45,0.00019452,2]
[326559946,1715109053161,-500.0,0.00019452,2]
[326559947,1715109053171,-500.0,0.00019452,2]
[326559948,1715109053181,-500.0,0.00019452,2]
[326559949,1715109053191,-500.0,0.00019452,2]
[326559950,1715109053202,-500.0,0.00019452,2]
[326559951,1715109053213,-1020.83,0.00019452,2]
[326559952,1715109053224,-500.0,0.00019452,2]
[326559953,1715109053235,-500.0,0.00019452,2]
[326559954,1715109053249,-500.0,0.00019452,2]
[326559955,1715109053261,-500.0,0.00019452,2]
[326559956,1715109053274,-500.0,0.00019452,2]
[326559957,1715109053285,-1414.86,0.00019452,2]
[326559958,1715109053296,-500.0,0.00019452,2]
[326559959,1715109053306,-500.0,0.00019452,2]
[326559960,1715109053317,-500.0,0.00019452,2]
[326559961,1715109053328,-500.0,0.00019452,2]
[326559962,1715109053340,-731.07,0.00019452,2]
[326559963,1715109053351,-500.0,0.00019452,2]
[326559964,1715109053362,-500.0,0.00019452,2]
[326559965,1715109053372,-711.26,0.00019452,2]
[326559966,1715109053383,-500.0,0.00019452,2]
[326559967,1715109053393,-500.0,0.00019452,2]
[326559968,1715109053416,-1013.61,0.00019452,2]
[326559969,1715109053426,-500.0,0.00019452,2]
[326559970,1715109053437,-500.0,0.00019452,2]
[326559971,1715109053447,-500.0,0.00019452,2]
[326559972,1715109053458,-500.0,0.00019452,2]
[326559973,1715109053468,-500.0,0.00019452,2]
[326559974,1715109053479,-1169.14,0.00019452,2]
[326559975,1715109053489,-500.0,0.00019452,2]
[326559976,1715109053499,-500.0,0.00019452,2]
[326559977,1715109053509,-500.0,0.00019452,2]
[326559978,1715109053519,-735.22,0.00019452,2]
[326559979,1715109053529,-500.0,0.00019452,2]
[326559980,1715109053538,-544.24,0.00019452,2]
[326559981,1715109053548,-1704.43,0.00019452,2]
[326559982,1715109053559,-500.0,0.00019452,2]
[326559983,1715109053569,-500.0,0.00019452,2]
[326559984,1715109053579,-538.08,0.00019452,2]
[326559985,1715109053589,-557.71,0.00019452,2]
[326559986,1715109053602,-154.91246141,0.00019452,2]
[326559987,1715109053612,-500.0,0.00019452,2]
[326559988,1715109053622,-850.54,0.00019452,2]
[326559989,1715109053633,-500.0,0.00019452,2]
[326559990,1715109053646,-500.0,0.00019452,2]
[326559991,1715109053657,-500.0,0.00019452,2]
[326559992,1715109053667,-949.21,0.00019452,2]
[326559993,1715109053678,-500.0,0.00019452,2]
[326559994,1715109053689,-500.0,0.00019452,2]
[326559995,1715109053701,-500.0,0.00019452,2]
[326559996,1715109053711,-4821.02,0.00019452,2]
[326559997,1715109053721,-718.44,0.00019452,2]
[326559998,1715109053731,-182.99490182,0.00019452,2]
[326559999,1715109053742,-500.0,0.00019452,2]
[326560000,1715109053751,-1209.89,0.00019452,2]
[326560001,1715109053761,-521.54,0.00019452,2]
[326560002,1715109053772,-500.0,0.00019452,2]
[326560003,1715109053785,-500.0,0.00019452,2]
[326560004,1715109053802,-717.93,0.00019452,2]
[326560005,1715109053812,-500.0,0.00019452,2]
[326560006,1715109053823,-500.0,0.00019452,2]
[326560007,1715109053833,-500.0,0.00019452,2]
[326560008,1715109053846,-500.0,0.00019452,2]
[326560009,1715109053856,-928.47,0.00019452,2]
[326560010,1715109053866,-533.96,0.00019452,2]
[326560011,1715109053876,-500.0,0.00019452,2]
[326560012,1715109053886,-857.36,0.00019452,2]
[326560013,1715109053896,-560.95984953,0.00019452,2]
[326560014,1715109053906,-532.62,0.00019452,2]
[326560015,1715109053917,-2333.84,0.00019452,2]
[326560016,1715109053926,-678.25,0.00019452,2]
[326560017,1715109053936,-500.0,0.00019452,2]
[326560018,1715109053946,-1851.61,0.00019452,2]
[326560019,1715109053956,-563.87,0.00019452,2]
[326560020,1715109053966,-500.0,0.00019452,2]
[326560021,1715109053976,-547.36,0.00019452,2]
[326560022,1715109053986,-399.28639842,0.00019452,2]
[326560023,1715109053997,-753.1,0.00019452,2]
[326560024,1715109054007,-500.0,0.00019452,2]
[326560025,1715109054017,-500.0,0.00019452,2]
[326560026,1715109054028,-500.0,0.00019452,2]
[326560027,1715109054038,-500.0,0.00019452,2]
[326560028,1715109054048,-1246.61,0.00019452,2]
[326560029,1715109054058,-1396.46,0.00019452,2]
[326560030,1715109054069,-523.32,0.00019452,2]
[326560031,1715109054080,-1051.16,0.00019452,2]
[326560032,1715109054092,-1222.09,0.00019452,2]
[326560033,1715109054102,-500.0,0.00019452,2]
[326560034,1715109054113,-500.0,0.00019452,2]
[326560035,1715109054123,-1099.92,0.00019452,2]
[326560036,1715109054133,-3883.49,0.00019452,2]
[326560037,1715109054143,-500.0,0.00019452,2]
[326560038,1715109054153,-500.0,0.00019452,2]
[326560039,1715109054163,-500.0,0.00019452,2]
[326560040,1715109054173,-500.0,0.00019452,2]
[326560041,1715109054183,-500.0,0.00019452,2]
[326560042,1715109054193,-500.0,0.00019452,2]
[326560043,1715109054203,-500.0,0.00019452,2]
[326560044,1715109054213,-798.3,0.00019452,2]
[326560045,1715109054223,-500.0,0.00019452,2]
[326560046,1715109054234,-500.0,0.00019452,2]
[326560047,1715109054245,-1024.08,0.00019452,2]
[326560048,1715109054255,-500.0,0.00019452,2]
[326560049,1715109054266,-500.0,0.00019452,2]
[326560050,1715109054277,-500.0,0.00019452,2]
[326560051,1715109054287,-2720.42185578,0.00019452,2]
[326560052,1715109054311,-1005.84814422,0.00019452,2]
[326560053,1715109054322,-572.78,0.00019452,2]
[326560054,1715109054332,-500.0,0.00019452,2]
[326560055,1715109054342,-500.0,0.00019452,2]
[326560056,1715109054352,-500.0,0.00019452,2]
[326560057,1715109054362,-500.0,0.00019452,2]
[326560058,1715109054373,-500.0,0.00019452,2]
[326560059,1715109054383,-500.0,0.00019452,2]
[326560060,1715109054394,-1075.66,0.00019452,2]
[326560061,1715109054404,-931.21,0.00019452,2]
[326560062,1715109054414,-500.0,0.00019452,2]
[326560063,1715109054424,-1074.47,0.00019452,2]
[326560064,1715109054434,-614.33,0.00019452,2]
[326560065,1715109054445,-1390.99,0.00019452,2]
[326560066,1715109054455,-500.0,0.00019452,2]
[326560067,1715109054465,-1067.93,0.00019452,2]
[326560068,1715109054475,-500.0,0.00019452,2]
[326560069,1715109054486,-828.77,0.00019452,2]
[326560070,1715109054499,-500.0,0.00019452,2]
[326560071,1715109054511,-396.02233447,0.00019452,2]
[326560072,1715109054521,-500.0,0.00019452,2]
[326560073,1715109054531,-500.0,0.00019452,2]
[326560074,1715109054541,-500.0,0.00019452,2]
[326560075,1715109054551,-500.57,0.00019452,2]
[326560076,1715109054561,-500.0,0.00019452,2]
[326560077,1715109054571,-500.0,0.00019452,2]
[326560078,1715109054581,-544.9,0.00019452,2]
[326560079,1715109054591,-500.0,0.00019452,2]
[326560080,1715109054606,-793.32,0.00019452,2]
[326560081,1715109054617,-500.0,0.00019452,2]
[326560082,1715109054626,-1001.63,0.00019452,2]
[326560083,1715109054636,-500.0,0.00019452,2]
[326560084,1715109054647,-659.12,0.00019452,2]
[326560085,1715109054657,-500.0,0.00019452,2]
[326560086,1715109054667,-876.42,0.00019452,2]
[326560087,1715109054679,-500.0,0.00019452,2]
[326560088,1715109054691,-500.0,0.00019452,2]
[326560089,1715109054703,-500.0,0.00019452,2]
[326560090,1715109054713,-500.0,0.00019452,2]
[326560091,1715109054724,-1592.65,0.00019452,2]
[326560092,1715109054735,-500.0,0.00019452,2]
[326560093,1715109054756,-1382.91,0.00019452,2]
[326560094,1715109054767,-575.18,0.00019452,2]
[326560095,1715109054778,-676.71,0.00019452,2]
[326560096,1715109054800,-500.0,0.00019452,2]
[326560097,1715109054811,-677.53,0.00019452,2]
[326560098,1715109054827,-892.36,0.00019452,2]
[326560099,1715109054836,-500.0,0.00019452,2]
[326560100,1715109054847,-500.0,0.00019452,2]
[326560101,1715109054860,-809.83,0.00019452,2]
[326560102,1715109054871,-798.52,0.00019452,2]
[326560103,1715109054882,-500.0,0.00019452,2]
[326560104,1715109054893,-500.0,0.00019452,2]
[326560105,1715109054903,-540.05,0.00019452,2]
[326560106,1715109054913,-582.92,0.00019452,2]
[326560107,1715109054924,-712.06,0.00019452,2]
[326560108,1715109054934,-500.0,0.00019452,2]
[326560109,1715109054945,-2338.12,0.00019452,2]
[326560110,1715109054956,-1209.49,0.00019452,2]
[326560111,1715109054966,-627.88,0.00019452,2]
[326560112,1715109054977,-500.0,0.00019452,2]
[326560113,1715109054989,-500.0,0.00019452,2]
[326560114,1715109055000,-624.93,0.00019452,2]
[326560115,1715109055010,-500.0,0.00019452,2]
[326560116,1715109055021,-500.0,0.00019452,2]
[326560117,1715109055031,-500.0,0.00019452,2]
[326560118,1715109055042,-506.15,0.00019452,2]
[326560119,1715109055052,-1481.7,0.00019452,2]
[326560120,1715109055063,-500.0,0.00019452,2]
[326560121,1715109055073,-500.0,0.00019452,2]
[326560122,1715109055084,-500.0,0.00019452,2]
[326560123,1715109055094,-1227.85,0.00019452,2]
[326560124,1715109055104,-803.02,0.00019452,2]
[326560125,1715109055114,-541.87,0.00019452,2]
[326560126,1715109055125,-1085.64,0.00019452,2]
[326560127,1715109055135,-563.22,0.00019452,2]
[326560128,1715109055146,-500.0,0.00019452,2]
[326560129,1715109055157,-1105.8,0.00019452,2]
[326560130,1715109055167,-500.0,0.00019452,2]
[326560131,1715109055178,-5700.1,0.00019452,2]
[326560132,1715109055188,-979.3,0.00019452,2]
[326560133,1715109055200,-500.0,0.00019452,2]
[326560134,1715109055210,-500.0,0.00019452,2]
[326560135,1715109055221,-1106.3,0.00019452,2]
[326560136,1715109055231,-500.0,0.00019452,2]
[326560137,1715109055242,-1297.44,0.00019452,2]
[326560138,1715109055252,-1056.34,0.00019452,2]
[326560139,1715109055262,-1432.86,0.00019452,2]
[326560140,1715109055273,-1779.56,0.00019452,2]
[326560141,1715109055284,-500.0,0.00019452,2]
[326560142,1715109055294,-500.0,0.00019452,2]
[326560143,1715109055305,-748.56,0.00019452,2]
[326560144,1715109055315,-500.0,0.00019452,2]
[326560145,1715109055325,-4338.05,0.00019452,2]
[326560146,1715109055337,-501.29,0.00019452,2]
[326560147,1715109055347,-500.0,0.00019452,2]
[326560148,1715109055358,-500.0,0.00019452,2]
[326560149,1715109055369,-2987.38,0.00019452,2]
[326560150,1715109055379,-822.38209533,0.00019452,2]
[326560151,1715109055394,-711.74790467,0.00019452,2]
[326560152,1715109055405,-439.22607328,0.00019452,2]
[326560153,1715109055416,-896.06,0.00019452,2]
[326560154,1715109055427,-1535.14,0.00019452,2]
[326560155,1715109055437,-500.0,0.00019452,2]
[326560156,1715109055448,-500.0,0.00019452,2]
[326560157,1715109055459,-500.0,0.00019452,2]
[326560158,1715109055471,-500.0,0.00019452,2]
[326560159,1715109055482,-1016.39,0.00019452,2]
[326560160,1715109055494,-500.0,0.00019452,2]
[326560161,1715109055504,-839.24,0.00019452,2]
[326560162,1715109055515,-3689.62548705,0.00019452,2]
[326560163,1715109055530,-14247.97451295,0.00019452,2]
[326560164,1715109055540,-500.0,0.00019452,2]
[326560165,1715109055551,-175.60898205,0.00019452,2]
[326560166,1715109056328,-155.0,9.34e-05,2]
[326560167,1715109056339,-463.33179,0.00015626,2]
[326560168,1715109056352,-140.73186118,0.00015626,2]
[326560169,1715109056363,-972.19390953,0.00019178,2]
[326560170,1715109056376,-1069.62609047,0.00019178,2]
[326560171,1715109056387,-554.62,0.00019178,2]
[326560172,1715109056398,-500.0,0.00019178,2]
[326560173,1715109056408,-100.29123962,0.00019452,2]
[326560174,1715109056419,-1219.46,0.00019452,2]
[326560175,1715109056429,-500.0,0.00019452,2]
[326560176,1715109056440,-500.0,0.00019452,2]
[326560177,1715109056451,-273.11469234,0.00019452,2]
[326560178,1715109056469,-226.88530766,0.00019452,2]
[326560179,1715109056480,-500.0,0.00019452,2]
[326560180,1715109056492,-48.88879043,0.00019452,2]
[326560181,1715109056507,-1026.03120957,0.00019452,2]
[326560182,1715109056518,-767.65,0.00019452,2]
[326560183,1715109056529,-500.0,0.00019452,2]
[326560184,1715109056539,-500.0,0.00019452,2]
[326560185,1715109056550,-3466.46,0.00019452,2]
[326560186,1715109056561,-1717.75,0.00019452,2]
[326560187,1715109056572,-500.0,0.00019452,2]
[326560188,1715109056583,-500.0,0.00019452,2]
[326560189,1715109056594,-835.03,0.00019452,2]
[326560190,1715109056607,-500.0,0.00019452,2]
[326560191,1715109056619,-500.0,0.00019452,2]
[326560192,1715109056630,-946.47,0.00019452,2]
[326560193,1715109056643,-3939.72,0.00019452,2]
[326560194,1715109056654,-660.56,0.00019452,2]
[326560195,1715109056666,-622.4,0.00019452,2]
[326560196,1715109056677,-9068.98,0.00019452,2]
[326560197,1715109056691,-500.0,0.00019452,2]
[326560198,1715109056703,-975.09,0.00019452,2]
[326560199,1715109056714,-7823.11,0.00019452,2]
[326560200,1715109056725,-2517.85,0.00019452,2]
[326560201,1715109056736,-609.96710994,0.00019452,2]
[326560202,1715109056747,-3443.28,0.00019452,2]
[326560203,1715109056758,-500.0,0.00019452,2]
[326560204,1715109056769,-500.0,0.00019452,2]
[326560205,1715109056780,-500.0,0.00019452,2]
[326560206,1715109056795,-626.56,0.00019452,2]
[326560207,1715109056807,-500.0,0.00019452,2]
[326560208,1715109056818,-800.83,0.00019452,2]
[326560209,1715109056828,-500.0,0.00019452,2]
[326560210,1715109056839,-731.11,0.00019452,2]
[326560211,1715109056851,-500.0,0.00019452,2]
[326560212,1715109056862,-3016.05,0.00019452,2]
[326560213,1715109056872,-500.0,0.00019452,2]
[326560214,1715109056883,-544.82,0.00019452,2]
[326560215,1715109056893,-500.0,0.00019452,2]
[326560216,1715109056904,-862.97,0.00019452,2]
[326560217,1715109056914,-1652.38,0.00019452,2]
[326560218,1715109056925,-2159.29,0.00019452,2]
[326560219,1715109056935,-519.35288479,0.00019452,2]
[326560220,1715109056945,-500.0,0.00019452,2]
[326560221,1715109056956,-669.45,0.00019452,2]
[326560222,1715109056966,-1098.34,0.00019452,2]
[326560223,1715109056977,-174.55680789,0.00019452,2]
[326560224,1715109056988,-500.0,0.00019452,2]
[326560225,1715109056999,-500.0,0.00019452,2]
[326560226,1715109057009,-500.0,0.00019452,2]
[326560227,1715109057019,-500.0,0.00019452,2]
[326560228,1715109057030,-541.77,0.00019452,2]
[326560229,1715109057040,-500.0,0.00019452,2]
[326560230,1715109057050,-500.0,0.00019452,2]
[326560231,1715109057062,-640.04,0.00019452,2]
[326560232,1715109057072,-558.7,0.00019452,2]
[326560233,1715109057083,-848.65,0.00019452,2]
[326560234,1715109057093,-626.2,0.00019452,2]
[326560235,1715109057105,-1005.88,0.00019452,2]
[326560236,1715109057115,-13278.13,0.00019452,2]
[326560237,1715109057126,-500.0,0.00019452,2]
[326560238,1715109057137,-1307.7,0.00019452,2]
[326560239,1715109057147,-500.0,0.00019452,2]
[326560240,1715109057157,-500.0,0.00019452,2]
[326560241,1715109057168,-449.01451976,0.00019452,2]
[326560242,1715109057179,-500.0,0.00019452,2]
[326560243,1715109057189,-500.0,0.00019452,2]
[326560244,1715109057201,-783.4,0.00019452,2]
[326560245,1715109057211,-593.67,0.00019452,2]
[326560246,1715109057222,-500.0,0.00019452,2]
[326560247,1715109057232,-858.71,0.00019452,2]
[326560248,1715109057243,-500.0,0.00019452,2]
[326560249,1715109057254,-811.78,0.00019452,2]
[326560250,1715109057264,-500.0,0.00019452,2]
[326560251,1715109057275,-500.0,0.00019452,2]
[326560252,1715109057286,-2207.78,0.00019452,2]
[326560253,1715109057297,-581.24,0.00019452,2]
[326560254,1715109057308,-775.24,0.00019452,2]
[326560255,1715109057319,-500.0,0.00019452,2]
[326560256,1715109057330,-681.51,0.00019452,2]
[326560257,1715109057341,-1322.4,0.00019452,2]
[326560258,1715109057353,-500.0,0.00019452,2]
[326560259,1715109057653,-500.0,0.00019452,2]
[326560260,1715109057676,-500.0,0.00019452,2]
[326560261,1715109057688,-1309.95,0.00019452,2]
[326560262,1715109057699,-500.0,0.00019452,2]
[326560263,1715109057709,-500.0,0.00019452,2]
[326560264,1715109057719,-1656.54,0.00019452,2]
[326560265,1715109057728,-500.0,0.00019452,2]
[326560266,1715109057738,-913.41,0.00019452,2]
[326560267,1715109057749,-500.0,0.00019452,2]
[326560268,1715109057758,-500.0,0.00019452,2]
[326560269,1715109057768,-1016.48,0.00019452,2]
[326560270,1715109057780,-500.0,0.00019452,2]
[326560271,1715109057794,-2525.7,0.00019452,2]
[326560272,1715109057805,-500.0,0.00019452,2]
[326560273,1715109057816,-500.0,0.00019452,2]
[326560274,1715109057826,-1488.9,0.00019452,2]
[326560275,1715109057836,-590.94,0.00019452,2]
[326560276,1715109057846,-1223.92,0.00019452,2]
[326560277,1715109057857,-2176.15,0.00019452,2]
[326560278,1715109057867,-500.0,0.00019452,2]
[326560279,1715109057876,-1089.01,0.00019452,2]
[326560280,1715109057887,-934.18,0.00019452,2]
[326560281,1715109057897,-500.0,0.00019452,2]
[326560282,1715109057909,-500.0,0.00019452,2]
[326560283,1715109057919,-589.37,0.00019452,2]
[326560284,1715109057930,-702.3,0.00019452,2]
[326560285,1715109057940,-500.0,0.00019452,2]
[326560286,1715109057950,-1123.02,0.00019452,2]
[326560287,1715109057961,-500.0,0.00019452,2]
[326560288,1715109057971,-500.0,0.00019452,2]
[326560289,1715109057982,-500.0,0.00019452,2]
[326560290,1715109057993,-1456.17,0.00019452,2]
[326560291,1715109058002,-1023.26,0.00019452,2]
[326560292,1715109058012,-543.92654174,0.00019452,2]
[326560293,1715109058023,-1294.89,0.00019452,2]
[326560294,1715109058034,-2029.34,0.00019452,2]
[326560295,1715109058044,-500.0,0.00019452,2]
[326560296,1715109058054,-958.06,0.00019452,2]
[326560297,1715109058065,-500.0,0.00019452,2]
[326560298,1715109058075,-3031.7,0.00019452,2]
[326560299,1715109058086,-500.0,0.00019452,2]
[326560300,1715109058096,-500.0,0.00019452,2]
[326560301,1715109058106,-1797.85,0.00019452,2]
[326560302,1715109058116,-500.0,0.00019452,2]
[326560303,1715109058126,-500.0,0.00019452,2]
[326560304,1715109058136,-500.0,0.00019452,2]
[326560305,1715109058146,-500.0,0.00019452,2]
[326560306,1715109058156,-2598.21,0.00019452,2]
[326560307,1715109058166,-2329.42,0.00019452,2]
[326560308,1715109058177,-639.23,0.00019452,2]
[326560309,1715109058187,-867.36,0.00019452,2]
[326560310,1715109058197,-500.0,0.00019452,2]
[326560311,1715109058207,-1368.28,0.00019452,2]
[326560312,1715109058217,-1447.62,0.00019452,2]
[326560313,1715109058227,-1495.07,0.00019452,2]
[326560314,1715109058237,-2090.62,0.00019452,2]
[326560315,1715109058250,-1247.39,0.00019452,2]
[326560316,1715109058260,-500.0,0.00019452,2]
[326560317,1715109058271,-500.0,0.00019452,2]
[326560318,1715109058281,-609.28,0.00019452,2]
[326560319,1715109058291,-500.0,0.00019452,2]
[326560320,1715109058301,-603.51004777,0.00019452,2]